[Event "Titled Tuesday Blitz June 07 Early 2022"]
[White "Vasquez Schroeder, Rodrigo"]
[Black "Gurevich, Dmitry"]
[WhiteFideId "3400042"]
[BlackFideId "2000407"]
[WhiteElo "2567"]
[BlackElo "2506"]
[Result "0-1"]
[Round "03"]
[TimeControl "180+1"]
[Date "2022.06.08"]
[WhiteClock "0:00:39"]
[BlackClock "0:00:04"]

1. e4 {[%clk 0:03:00]}  c5 {[%clk 0:02:58]} 2. Nf3 {[%clk 0:03:01]}  d6 {[%clk 0:02:57]} 3. d4 {[%clk 0:03:01]}  cxd4 {[%clk 0:02:58]} 4. Nxd4 {[%clk 0:03:02]}  Nf6 {[%clk 0:02:58]} 5. Nc3 {[%clk 0:03:03]}  Nc6 {[%clk 0:02:58]} 6. Bg5 {[%clk 0:03:03]}  e6 {[%clk 0:02:58]} 7. Qd2 {[%clk 0:03:03]}  Be7 {[%clk 0:02:58]} 8. O-O-O {[%clk 0:03:03]}  O-O {[%clk 0:02:58]} 9. f4 {[%clk 0:03:03]}  h6 {[%clk 0:02:54]} 10. Bh4 {[%clk 0:03:02]}  Qb6 {[%clk 0:02:53]} 11. Bf2 {[%clk 0:02:59]}  Qc7 {[%clk 0:02:53]} 12. Ndb5 {[%clk 0:02:54]}  Qa5 {[%clk 0:02:52]} 13. Kb1 {[%clk 0:02:49]}  Rd8 {[%clk 0:02:48]} 14. Nd4 {[%clk 0:02:44]}  Nxd4 {[%clk 0:02:35]} 15. Bxd4 {[%clk 0:02:39]}  Qc7 {[%clk 0:02:28]} 16. Bd3 {[%clk 0:02:33]}  a6 {[%clk 0:02:26]} 17. e5 {[%clk 0:02:21]}  dxe5 {[%clk 0:02:20]} 18. Bxe5 {[%clk 0:02:21]}  Qb6 {[%clk 0:02:02]} 19. Qe2 {[%clk 0:02:16]}  Bd7 {[%clk 0:01:55]} 20. Bc4 {[%clk 0:02:13]}  Rac8 {[%clk 0:01:43]} 21. Bb3 {[%clk 0:02:13]}  Bc6 {[%clk 0:01:35]} 22. Rhe1 {[%clk 0:02:12]}  Rxd1+ {[%clk 0:01:22]} 23. Rxd1 {[%clk 0:02:11]}  Rd8 {[%clk 0:01:21]} 24. Re1 {[%clk 0:02:11]}  Bb5 {[%clk 0:01:04]} 25. Qf3 {[%clk 0:01:45]}  Qc6 {[%clk 0:00:58]} 26. Qg3 {[%clk 0:01:41]}  Bc4 {[%clk 0:00:56]} 27. h3 {[%clk 0:01:36]}  Bxb3 {[%clk 0:00:56]} 28. axb3 {[%clk 0:01:36]}  b5 {[%clk 0:00:55]} 29. Qf2 {[%clk 0:01:31]}  b4 {[%clk 0:00:54]} 30. Bxf6 {[%clk 0:01:28]}  Bxf6 {[%clk 0:00:51]} 31. Ne4 {[%clk 0:01:29]}  Bd4 {[%clk 0:00:44]} 32. Qe2 {[%clk 0:01:28]}  Rd5 {[%clk 0:00:42]} 33. Nd2 {[%clk 0:01:23]}  Qc7 {[%clk 0:00:20]} 34. g3 {[%clk 0:01:19]}  a5 {[%clk 0:00:19]} 35. Nc4 {[%clk 0:01:20]}  Bf6 {[%clk 0:00:17]} 36. Rf1 {[%clk 0:01:15]}  Qc6 {[%clk 0:00:16]} 37. g4 {[%clk 0:01:13]}  a4 {[%clk 0:00:14]} 38. bxa4 {[%clk 0:00:53]}  Qxa4 {[%clk 0:00:13]} 39. Qf3 {[%clk 0:00:53]}  Qa6 {[%clk 0:00:11]} 40. Qb3 {[%clk 0:00:52]}  Rc5 {[%clk 0:00:09]} 41. Ne3 {[%clk 0:00:52]}  Ra5 {[%clk 0:00:09]} 42. Kc1 {[%clk 0:00:40]}  Ra1+ {[%clk 0:00:09]} 43. Kd2 {[%clk 0:00:40]}  Rxf1 {[%clk 0:00:09]} 44. Nxf1 {[%clk 0:00:41]}  Qxf1 {[%clk 0:00:08]} 45. Qxb4 {[%clk 0:00:42]}  Qf2+ {[%clk 0:00:08]} 46. Kd3 {[%clk 0:00:42]}  Qf3+ {[%clk 0:00:09]} 47. Kd2 {[%clk 0:00:43]}  Qxh3 {[%clk 0:00:09]} 48. Qe4 {[%clk 0:00:39]}  Qh2+ {[%clk 0:00:07]} 49. Kd3 {[%clk 0:00:39]}  Qg3+ {[%clk 0:00:08]} 50. Kc4 {[%clk 0:00:39]}  Qf2 {[%clk 0:00:07]} 51. Qa8+ {[%clk 0:00:35]}  Kh7 {[%clk 0:00:06]} 52. Qe4+ {[%clk 0:00:36]}  g6 {[%clk 0:00:06]} 53. Qb7 {[%clk 0:00:35]}  Kg7 {[%clk 0:00:06]} 54. c3 {[%clk 0:00:34]}  Qxf4+ {[%clk 0:00:05]} 55. Kb3 {[%clk 0:00:35]}  Qxg4 {[%clk 0:00:05]} 56. Qc7 {[%clk 0:00:35]}  Qf5 {[%clk 0:00:05]} 57. Ka4 {[%clk 0:00:35]}  Qd5 {[%clk 0:00:05]} 58. b4 {[%clk 0:00:35]}  Qa2+ {[%clk 0:00:04]} 59. Kb5 {[%clk 0:00:35]}  Qe2+ {[%clk 0:00:05]} 60. c4 {[%clk 0:00:35]}  h5 {[%clk 0:00:05]} 61. Ka6 {[%clk 0:00:33]}  h4 {[%clk 0:00:05]} 62. b5 {[%clk 0:00:34]}  h3 {[%clk 0:00:04]} 63. b6 {[%clk 0:00:34]}  h2 {[%clk 0:00:05]} 64. b7 {[%clk 0:00:33]}  h1=Q {[%clk 0:00:04]} 65. b8=Q {[%clk 0:00:33]}  Qa1+ {[%clk 0:00:02]} 66. Kb7 {[%clk 0:00:34]}  Qab2+ {[%clk 0:00:03]} 67. Kc8 {[%clk 0:00:34]}  Qxb8+ {[%clk 0:00:03]} 68. Kxb8 {[%clk 0:00:35]}  Qe5 {[%clk 0:00:03]} 69. c5 {[%clk 0:00:34]}  Qxc7+ {[%clk 0:00:02]} 70. Kxc7 {[%clk 0:00:35]}  Be5+ {[%clk 0:00:01]} 71. Kc6 {[%clk 0:00:36]}  Bf4 {[%clk 0:00:02]} 72. Kb5 {[%clk 0:00:37]}  g5 {[%clk 0:00:02]} 73. Kc4 {[%clk 0:00:37]}  Kf6 {[%clk 0:00:02]} 74. Kd3 {[%clk 0:00:38]}  Ke7 {[%clk 0:00:03]} 75. Ke4 {[%clk 0:00:39]}  Kd7 {[%clk 0:00:04]} 0-1


[Site "https://www.chess.com"]

[Event "Titled Tuesday Blitz June 07 Early 2022"]
[White "Wagner, Dinara"]
[Black "Rodrigue-Lemieux, Shawn"]
[WhiteFideId "24157570"]
[BlackFideId "2620049"]
[WhiteElo "2216"]
[BlackElo "1763"]
[Result "0-1"]
[Round "03"]
[TimeControl "180+1"]
[Date "2022.06.08"]
[WhiteClock "0:00:13"]
[BlackClock "0:00:23"]

1. Nf3 {[%clk 0:02:57]}  d5 {[%clk 0:02:59]} 2. d4 {[%clk 0:02:58]}  Nf6 {[%clk 0:02:59]} 3. c4 {[%clk 0:02:58]}  e6 {[%clk 0:02:59]} 4. g3 {[%clk 0:02:58]}  Be7 {[%clk 0:02:58]} 5. Bg2 {[%clk 0:02:58]}  O-O {[%clk 0:02:59]} 6. O-O {[%clk 0:02:59]}  dxc4 {[%clk 0:02:59]} 7. Qc2 {[%clk 0:02:59]}  a6 {[%clk 0:03:00]} 8. a4 {[%clk 0:02:59]}  Bd7 {[%clk 0:03:00]} 9. Qxc4 {[%clk 0:02:59]}  Bc6 {[%clk 0:03:00]} 10. Bf4 {[%clk 0:02:59]}  Bd6 {[%clk 0:03:00]} 11. Qc1 {[%clk 0:03:00]}  a5 {[%clk 0:03:00]} 12. Nc3 {[%clk 0:03:00]}  Na6 {[%clk 0:03:00]} 13. Nb5 {[%clk 0:02:52]}  Nb4 {[%clk 0:02:58]} 14. Rd1 {[%clk 0:02:40]}  Qe7 {[%clk 0:02:52]} 15. Nxd6 {[%clk 0:02:24]}  cxd6 {[%clk 0:02:51]} 16. Ra3 {[%clk 0:02:10]}  Rfc8 {[%clk 0:02:49]} 17. Rc3 {[%clk 0:01:43]}  Na2 {[%clk 0:02:49]} 18. Qa1 {[%clk 0:01:39]}  Nxc3 {[%clk 0:02:49]} 19. bxc3 {[%clk 0:01:40]}  b5 {[%clk 0:02:45]} 20. axb5 {[%clk 0:01:38]}  Bxb5 {[%clk 0:02:45]} 21. e3 {[%clk 0:01:30]}  Be2 {[%clk 0:02:42]} 22. Rc1 {[%clk 0:01:28]}  Bxf3 {[%clk 0:02:42]} 23. Bxf3 {[%clk 0:01:28]}  d5 {[%clk 0:02:43]} 24. c4 {[%clk 0:01:25]}  a4 {[%clk 0:02:34]} 25. c5 {[%clk 0:01:24]}  a3 {[%clk 0:02:34]} 26. Qa2 {[%clk 0:01:17]}  Qb7 {[%clk 0:02:20]} 27. Rc2 {[%clk 0:01:16]}  Qb4 {[%clk 0:02:16]} 28. Kg2 {[%clk 0:01:13]}  h6 {[%clk 0:02:16]} 29. h4 {[%clk 0:01:07]}  Ra7 {[%clk 0:02:07]} 30. Bd6 {[%clk 0:01:02]}  Rc6 {[%clk 0:02:03]} 31. g4 {[%clk 0:00:44]}  Rb7 {[%clk 0:01:57]} 32. g5 {[%clk 0:00:41]}  hxg5 {[%clk 0:01:57]} 33. hxg5 {[%clk 0:00:41]}  Ne8 {[%clk 0:01:36]} 34. Bf4 {[%clk 0:00:33]}  Qb3 {[%clk 0:01:33]} 35. e4 {[%clk 0:00:31]}  Nc7 {[%clk 0:01:13]} 36. Bxc7 {[%clk 0:00:31]}  Rcxc7 {[%clk 0:01:12]} 37. exd5 {[%clk 0:00:31]}  exd5 {[%clk 0:01:07]} 38. Bxd5 {[%clk 0:00:30]}  Qxa2 {[%clk 0:01:06]} 39. Rxa2 {[%clk 0:00:29]}  Ra7 {[%clk 0:01:06]} 40. g6 {[%clk 0:00:29]}  Kf8 {[%clk 0:00:50]} 41. Bxf7 {[%clk 0:00:29]}  Ra4 {[%clk 0:00:49]} 42. Kf3 {[%clk 0:00:23]}  Rxd4 {[%clk 0:00:41]} 43. Rxa3 {[%clk 0:00:23]}  Rxc5 {[%clk 0:00:41]} 44. Ra8+ {[%clk 0:00:24]}  Ke7 {[%clk 0:00:41]} 45. Ra7+ {[%clk 0:00:23]}  Kf6 {[%clk 0:00:41]} 46. Ra6+ {[%clk 0:00:23]}  Kg5 {[%clk 0:00:38]} 47. Ra7 {[%clk 0:00:22]}  Rf5+ {[%clk 0:00:30]} 48. Ke3 {[%clk 0:00:18]}  Rdf4 {[%clk 0:00:28]} 49. Ra2 {[%clk 0:00:16]}  Rf3+ {[%clk 0:00:27]} 50. Ke4 {[%clk 0:00:17]}  Rxf2 {[%clk 0:00:24]} 51. Ra3 {[%clk 0:00:15]}  R2f4+ {[%clk 0:00:23]} 52. Ke3 {[%clk 0:00:13]}  Rf3+ {[%clk 0:00:23]} 0-1


[Site "https://www.chess.com"]

[Event "Titled Tuesday Blitz June 07 Early 2022"]
[White "Alinasab, Mobina"]
[Black "Valle Maytin, Luis Enrique"]
[WhiteFideId "12528897"]
[BlackFideId "3503666"]
[WhiteElo "2031"]
[BlackElo "2239"]
[Result "1-0"]
[Round "04"]
[TimeControl "180+1"]
[Date "2022.06.08"]
[WhiteClock "0:00:08"]
[BlackClock "0:00:10"]

1. e4 {[%clk 0:03:00]}  c6 {[%clk 0:02:59]} 2. d4 {[%clk 0:03:00]}  d5 {[%clk 0:03:00]} 3. Nd2 {[%clk 0:03:00]}  dxe4 {[%clk 0:03:01]} 4. Nxe4 {[%clk 0:03:01]}  Nf6 {[%clk 0:03:01]} 5. Nxf6+ {[%clk 0:02:51]}  exf6 {[%clk 0:03:02]} 6. c3 {[%clk 0:02:51]}  Bd6 {[%clk 0:03:02]} 7. Bd3 {[%clk 0:02:51]}  O-O {[%clk 0:03:02]} 8. Qc2 {[%clk 0:02:52]}  Re8+ {[%clk 0:03:01]} 9. Ne2 {[%clk 0:02:53]}  h5 {[%clk 0:03:01]} 10. Be3 {[%clk 0:02:51]}  Nd7 {[%clk 0:03:01]} 11. O-O-O {[%clk 0:02:51]}  Nf8 {[%clk 0:03:01]} 12. Nf4 {[%clk 0:02:49]}  g6 {[%clk 0:02:59]} 13. h4 {[%clk 0:02:25]}  f5 {[%clk 0:02:55]} 14. Kb1 {[%clk 0:02:21]}  Be6 {[%clk 0:02:55]} 15. Nxe6 {[%clk 0:02:17]}  Nxe6 {[%clk 0:02:56]} 16. g3 {[%clk 0:02:06]}  Qf6 {[%clk 0:02:21]} 17. Bc1 {[%clk 0:01:57]}  b5 {[%clk 0:02:15]} 18. d5 {[%clk 0:01:42]}  cxd5 {[%clk 0:02:02]} 19. Bxb5 {[%clk 0:01:40]}  Red8 {[%clk 0:01:57]} 20. Bc6 {[%clk 0:01:37]}  Rab8 {[%clk 0:01:55]} 21. Bxd5 {[%clk 0:01:37]}  Bc5 {[%clk 0:01:51]} 22. Bb3 {[%clk 0:01:26]}  Bb6 {[%clk 0:01:34]} 23. Rhe1 {[%clk 0:01:25]}  Nc5 {[%clk 0:01:34]} 24. Bg5 {[%clk 0:01:20]}  Rxd1+ {[%clk 0:01:32]} 25. Rxd1 {[%clk 0:01:10]}  Qc6 {[%clk 0:01:28]} 26. Bd5 {[%clk 0:01:07]}  Qb5 {[%clk 0:01:21]} 27. Bf4 {[%clk 0:00:58]}  Re8 {[%clk 0:01:16]} 28. Be3 {[%clk 0:00:44]}  Na4 {[%clk 0:01:11]} 29. Bb3 {[%clk 0:00:40]}  Nc5 {[%clk 0:00:59]} 30. Bd5 {[%clk 0:00:15]}  Ne4 {[%clk 0:00:53]} 31. c4 {[%clk 0:00:09]}  Qb4 {[%clk 0:00:44]} 32. a3 {[%clk 0:00:08]}  Qe7 {[%clk 0:00:34]} 33. Bxb6 {[%clk 0:00:08]}  axb6 {[%clk 0:00:34]} 34. Re1 {[%clk 0:00:08]}  Qe5 {[%clk 0:00:28]} 35. Re3 {[%clk 0:00:07]}  Qd4 {[%clk 0:00:25]} 36. Bxe4 {[%clk 0:00:05]}  fxe4 {[%clk 0:00:18]} 37. Qc3 {[%clk 0:00:04]}  Qd1+ {[%clk 0:00:17]} 38. Ka2 {[%clk 0:00:04]}  Qd6 {[%clk 0:00:14]} 39. Re1 {[%clk 0:00:03]}  f5 {[%clk 0:00:14]} 40. Re3 {[%clk 0:00:03]}  Qc5 {[%clk 0:00:13]} 41. Re2 {[%clk 0:00:04]}  Rc8 {[%clk 0:00:13]} 42. b3 {[%clk 0:00:03]}  b5 {[%clk 0:00:14]} 43. b4 {[%clk 0:00:02]}  Qxc4+ {[%clk 0:00:13]} 44. Qxc4+ {[%clk 0:00:03]}  Rxc4 {[%clk 0:00:14]} 45. Kb2 {[%clk 0:00:03]}  Kf7 {[%clk 0:00:14]} 46. Rd2 {[%clk 0:00:04]}  Ke6 {[%clk 0:00:15]} 47. Rd8 {[%clk 0:00:04]}  Kf6 {[%clk 0:00:14]} 48. Rf8+ {[%clk 0:00:04]}  Ke5 {[%clk 0:00:14]} 49. Rb8 {[%clk 0:00:05]}  Kd4 {[%clk 0:00:13]} 50. Rd8+ {[%clk 0:00:05]}  Ke5 {[%clk 0:00:13]} 51. Kb3 {[%clk 0:00:05]}  Rc1 {[%clk 0:00:12]} 52. Rb8 {[%clk 0:00:05]}  Rf1 {[%clk 0:00:12]} 53. Rxb5+ {[%clk 0:00:05]}  Kd4 {[%clk 0:00:12]} 54. Rb6 {[%clk 0:00:05]}  Rxf2 {[%clk 0:00:12]} 55. Rd6+ {[%clk 0:00:04]}  Ke5 {[%clk 0:00:12]} 56. Rxg6 {[%clk 0:00:04]}  e3 {[%clk 0:00:12]} 57. Kc3 {[%clk 0:00:04]}  Rd2 {[%clk 0:00:07]} 58. Rg8 {[%clk 0:00:03]}  Rd6 {[%clk 0:00:02]} 59. Re8+ {[%clk 0:00:03]}  Kd5 {[%clk 0:00:03]} 60. Rxe3 {[%clk 0:00:03]}  Rc6+ {[%clk 0:00:03]} 61. Kb3 {[%clk 0:00:03]}  Rf6 {[%clk 0:00:04]} 62. Rf3 {[%clk 0:00:03]}  Ke4 {[%clk 0:00:04]} 63. Rc3 {[%clk 0:00:04]}  Ke5 {[%clk 0:00:05]} 64. a4 {[%clk 0:00:03]}  Ke4 {[%clk 0:00:05]} 65. b5 {[%clk 0:00:04]}  Rg6 {[%clk 0:00:04]} 66. a5 {[%clk 0:00:04]}  Rxg3 {[%clk 0:00:04]} 67. Rxg3 {[%clk 0:00:03]}  f4 {[%clk 0:00:04]} 68. Rc3 {[%clk 0:00:03]}  f3 {[%clk 0:00:05]} 69. b6 {[%clk 0:00:04]}  f2 {[%clk 0:00:05]} 70. Rc1 {[%clk 0:00:05]}  Ke3 {[%clk 0:00:05]} 71. Rf1 {[%clk 0:00:05]}  Ke2 {[%clk 0:00:06]} 72. Rxf2+ {[%clk 0:00:06]}  Kxf2 {[%clk 0:00:07]} 73. b7 {[%clk 0:00:07]}  Kg3 {[%clk 0:00:08]} 74. b8=Q+ {[%clk 0:00:07]}  Kxh4 {[%clk 0:00:09]} 75. Qh8 {[%clk 0:00:08]}  Kg3 {[%clk 0:00:10]} 1-0


[Site "https://www.chess.com"]

[Event "Titled Tuesday Blitz June 07 Early 2022"]
[White "Alvarado Diaz, Alejandro"]
[Black "Terry, Renato"]
[WhiteFideId "2276119"]
[BlackFideId "3803457"]
[WhiteElo "2438"]
[BlackElo "2577"]
[Result "1/2-1/2"]
[Round "04"]
[TimeControl "180+1"]
[Date "2022.06.07"]
[WhiteClock "0:00:16"]
[BlackClock "0:00:12"]

1. d4 {[%clk 0:03:00]}  e6 {[%clk 0:02:59]} 2. c4 {[%clk 0:03:00]}  Bb4+ {[%clk 0:02:59]} 3. Nc3 {[%clk 0:02:51]}  c5 {[%clk 0:02:59]} 4. dxc5 {[%clk 0:02:44]}  Bxc3+ {[%clk 0:02:58]} 5. bxc3 {[%clk 0:02:44]}  Qa5 {[%clk 0:02:59]} 6. Nf3 {[%clk 0:02:27]}  Nf6 {[%clk 0:02:56]} 7. Qb3 {[%clk 0:02:18]}  Nc6 {[%clk 0:02:49]} 8. e3 {[%clk 0:02:11]}  Ne4 {[%clk 0:02:48]} 9. Be2 {[%clk 0:01:59]}  Nxc5 {[%clk 0:02:43]} 10. Qa3 {[%clk 0:01:54]}  d6 {[%clk 0:02:42]} 11. Nd4 {[%clk 0:01:46]}  Bd7 {[%clk 0:02:03]} 12. O-O {[%clk 0:01:33]}  Qxa3 {[%clk 0:01:34]} 13. Bxa3 {[%clk 0:01:34]}  Na5 {[%clk 0:01:34]} 14. Rfd1 {[%clk 0:01:20]}  Rc8 {[%clk 0:01:30]} 15. Rab1 {[%clk 0:01:14]}  b6 {[%clk 0:01:28]} 16. Nb5 {[%clk 0:01:10]}  Bxb5 {[%clk 0:01:27]} 17. cxb5 {[%clk 0:01:11]}  d5 {[%clk 0:00:35]} 18. Bb4 {[%clk 0:01:04]}  f5 {[%clk 0:00:24]} 19. f3 {[%clk 0:01:03]}  Rc7 {[%clk 0:00:19]} 20. Rbc1 {[%clk 0:00:55]}  Ncb7 {[%clk 0:00:20]} 21. e4 {[%clk 0:00:49]}  dxe4 {[%clk 0:00:16]} 22. fxe4 {[%clk 0:00:49]}  Kf7 {[%clk 0:00:16]} 23. exf5 {[%clk 0:00:48]}  exf5 {[%clk 0:00:17]} 24. Bf3 {[%clk 0:00:43]}  Rhc8 {[%clk 0:00:16]} 25. Bd5+ {[%clk 0:00:42]}  Kg6 {[%clk 0:00:15]} 26. c4 {[%clk 0:00:40]}  Nc5 {[%clk 0:00:08]} 27. Rc3 {[%clk 0:00:39]}  h6 {[%clk 0:00:07]} 28. Rg3+ {[%clk 0:00:38]}  Kh7 {[%clk 0:00:08]} 29. Re1 {[%clk 0:00:32]}  Ne4 {[%clk 0:00:06]} 30. Bxe4 {[%clk 0:00:31]}  fxe4 {[%clk 0:00:07]} 31. Bxa5 {[%clk 0:00:30]}  bxa5 {[%clk 0:00:08]} 32. Rxe4 {[%clk 0:00:29]}  Rxc4 {[%clk 0:00:03]} 33. Rxc4 {[%clk 0:00:29]}  Rxc4 {[%clk 0:00:03]} 34. Ra3 {[%clk 0:00:30]}  a4 {[%clk 0:00:04]} 35. Rf3 {[%clk 0:00:22]}  Rb4 {[%clk 0:00:04]} 36. Rf7 {[%clk 0:00:19]}  Rxb5 {[%clk 0:00:04]} 37. Rxa7 {[%clk 0:00:19]}  Rb1+ {[%clk 0:00:05]} 38. Kf2 {[%clk 0:00:18]}  Rb2+ {[%clk 0:00:06]} 39. Kg3 {[%clk 0:00:17]}  Rxa2 {[%clk 0:00:06]} 40. h4 {[%clk 0:00:17]}  h5 {[%clk 0:00:05]} 41. Kh3 {[%clk 0:00:12]}  Kh6 {[%clk 0:00:04]} 42. Ra6+ {[%clk 0:00:11]}  Kh7 {[%clk 0:00:04]} 43. Ra5 {[%clk 0:00:09]}  g6 {[%clk 0:00:03]} 44. Ra7+ {[%clk 0:00:07]}  Kg8 {[%clk 0:00:02]} 45. Kh2 {[%clk 0:00:06]}  Ra1 {[%clk 0:00:02]} 46. Kg3 {[%clk 0:00:05]}  a3 {[%clk 0:00:03]} 47. Kh2 {[%clk 0:00:05]}  Kf8 {[%clk 0:00:02]} 48. Kg3 {[%clk 0:00:05]}  Ra2 {[%clk 0:00:03]} 49. Ra6 {[%clk 0:00:03]}  Kf7 {[%clk 0:00:03]} 50. Kf3 {[%clk 0:00:03]}  Kg7 {[%clk 0:00:03]} 51. Kg3 {[%clk 0:00:03]}  Ra1 {[%clk 0:00:03]} 52. Kf3 {[%clk 0:00:02]}  Kf7 {[%clk 0:00:03]} 53. Kg3 {[%clk 0:00:02]}  Kg7 {[%clk 0:00:04]} 54. Kf3 {[%clk 0:00:03]}  Kh7 {[%clk 0:00:04]} 55. Kg3 {[%clk 0:00:04]}  Kh6 {[%clk 0:00:02]} 56. Kf3 {[%clk 0:00:03]}  Ra2 {[%clk 0:00:03]} 57. Kg3 {[%clk 0:00:03]}  Kg7 {[%clk 0:00:03]} 58. Kf3 {[%clk 0:00:04]}  Kf7 {[%clk 0:00:03]} 59. Kg3 {[%clk 0:00:04]}  Ke7 {[%clk 0:00:02]} 60. Kf3 {[%clk 0:00:05]}  Ra1 {[%clk 0:00:02]} 61. Kg3 {[%clk 0:00:05]}  Kf7 {[%clk 0:00:02]} 62. Kf3 {[%clk 0:00:05]}  a2 {[%clk 0:00:03]} 63. Kg3 {[%clk 0:00:05]}  Kg7 {[%clk 0:00:03]} 64. Kh2 {[%clk 0:00:05]}  Kh7 {[%clk 0:00:03]} 65. Kg3 {[%clk 0:00:05]}  Kg7 {[%clk 0:00:04]} 66. Kh2 {[%clk 0:00:06]}  Kf7 {[%clk 0:00:04]} 67. Kg3 {[%clk 0:00:06]}  Ke7 {[%clk 0:00:05]} 68. Kh2 {[%clk 0:00:07]}  Kd7 {[%clk 0:00:05]} 69. Ra8 {[%clk 0:00:07]}  Kc6 {[%clk 0:00:04]} 70. Ra7 {[%clk 0:00:07]}  Kd5 {[%clk 0:00:05]} 71. Ra8 {[%clk 0:00:07]}  Ke4 {[%clk 0:00:05]} 72. Ra4+ {[%clk 0:00:07]}  Ke3 {[%clk 0:00:05]} 73. Ra8 {[%clk 0:00:08]}  Kd3 {[%clk 0:00:05]} 74. Rd8+ {[%clk 0:00:07]}  Kc4 {[%clk 0:00:06]} 75. Rc8+ {[%clk 0:00:07]}  Kb3 {[%clk 0:00:07]} 76. Rb8+ {[%clk 0:00:07]}  Ka4 {[%clk 0:00:08]} 77. Ra8+ {[%clk 0:00:08]}  Kb5 {[%clk 0:00:09]} 78. Rb8+ {[%clk 0:00:09]}  Kc5 {[%clk 0:00:09]} 79. Ra8 {[%clk 0:00:09]}  Kd6 {[%clk 0:00:09]} 80. Ra7 {[%clk 0:00:09]}  Ke5 {[%clk 0:00:10]} 81. Ra8 {[%clk 0:00:09]}  Kf5 {[%clk 0:00:10]} 82. Ra7 {[%clk 0:00:10]}  Kf4 {[%clk 0:00:10]} 83. Ra4+ {[%clk 0:00:10]}  Kf5 {[%clk 0:00:10]} 84. Ra5+ {[%clk 0:00:10]}  Ke4 {[%clk 0:00:11]} 85. Ra4+ {[%clk 0:00:10]}  Ke3 {[%clk 0:00:11]} 86. Ra8 {[%clk 0:00:10]}  Kf4 {[%clk 0:00:07]} 87. Ra4+ {[%clk 0:00:10]}  Kf5 {[%clk 0:00:08]} 88. Ra5+ {[%clk 0:00:11]}  Kf6 {[%clk 0:00:09]} 89. Ra6+ {[%clk 0:00:11]}  Kg7 {[%clk 0:00:10]} 90. Ra7+ {[%clk 0:00:12]}  Kh6 {[%clk 0:00:10]} 91. Ra8 {[%clk 0:00:12]}  g5 {[%clk 0:00:07]} 92. Ra6+ {[%clk 0:00:12]}  Kg7 {[%clk 0:00:07]} 93. hxg5 {[%clk 0:00:13]}  h4 {[%clk 0:00:08]} 94. Ra8 {[%clk 0:00:11]}  Kg6 {[%clk 0:00:09]} 95. Ra5 {[%clk 0:00:11]}  Kh5 {[%clk 0:00:09]} 96. g6+ {[%clk 0:00:10]}  Kxg6 {[%clk 0:00:09]} 97. Ra6+ {[%clk 0:00:11]}  Kg5 {[%clk 0:00:09]} 98. Ra8 {[%clk 0:00:11]}  Kg4 {[%clk 0:00:09]} 99. Ra4+ {[%clk 0:00:11]}  Kf5 {[%clk 0:00:09]} 100. Ra8 {[%clk 0:00:12]}  Ke4 {[%clk 0:00:10]} 101. Ra4+ {[%clk 0:00:12]}  Kd3 {[%clk 0:00:11]} 102. Ra8 {[%clk 0:00:13]}  Kc4 {[%clk 0:00:10]} 103. Rc8+ {[%clk 0:00:13]}  Kb5 {[%clk 0:00:11]} 104. Rb8+ {[%clk 0:00:14]}  Ka6 {[%clk 0:00:12]} 105. Ra8+ {[%clk 0:00:14]}  Kb7 {[%clk 0:00:13]} 106. Ra3 {[%clk 0:00:15]}  Kb6 {[%clk 0:00:14]} 107. Ra4 {[%clk 0:00:15]}  Kb5 {[%clk 0:00:13]} 108. Ra8 {[%clk 0:00:15]}  Kc4 {[%clk 0:00:13]} 109. Rc8+ {[%clk 0:00:15]}  Kd3 {[%clk 0:00:13]} 110. Ra8 {[%clk 0:00:15]}  Kc2 {[%clk 0:00:11]} 111. Rc8+ {[%clk 0:00:15]}  Kb3 {[%clk 0:00:11]} 112. Rb8+ {[%clk 0:00:16]}  Kc4 {[%clk 0:00:12]} 113. Rc8+ {[%clk 0:00:16]} 1/2-1/2


[Site "https://www.chess.com"]

[Event "Titled Tuesday Blitz June 07 Early 2022"]
[White "Daneshvar, Bardiya"]
[Black "Kozak, Adam"]
[WhiteFideId "12576468"]
[BlackFideId "753246"]
[WhiteElo "2303"]
[BlackElo "2459"]
[Result "1-0"]
[Round "04"]
[TimeControl "180+1"]
[Date "2022.06.07"]
[WhiteClock "0:00:12"]
[BlackClock "0:00:01"]

1. b3 {[%clk 0:03:00]}  a5 {[%clk 0:02:59]} 2. e4 {[%clk 0:02:58]}  a4 {[%clk 0:02:59]} 3. Nf3 {[%clk 0:02:57]}  e6 {[%clk 0:02:59]} 4. bxa4 {[%clk 0:02:54]}  Rxa4 {[%clk 0:02:58]} 5. d4 {[%clk 0:02:55]}  b6 {[%clk 0:02:55]} 6. Bd3 {[%clk 0:02:47]}  Ba6 {[%clk 0:02:45]} 7. O-O {[%clk 0:02:47]}  Bxd3 {[%clk 0:02:44]} 8. Qxd3 {[%clk 0:02:48]}  Qc8 {[%clk 0:02:34]} 9. Nc3 {[%clk 0:02:46]}  Ra8 {[%clk 0:02:34]} 10. e5 {[%clk 0:02:45]}  Qb7 {[%clk 0:02:29]} 11. d5 {[%clk 0:02:39]}  Na6 {[%clk 0:01:48]} 12. Qc4 {[%clk 0:02:23]}  Ne7 {[%clk 0:01:31]} 13. dxe6 {[%clk 0:02:18]}  dxe6 {[%clk 0:01:31]} 14. Be3 {[%clk 0:02:14]}  Qc6 {[%clk 0:01:30]} 15. Qd3 {[%clk 0:01:53]}  Nf5 {[%clk 0:01:29]} 16. Nd4 {[%clk 0:01:51]}  Nxd4 {[%clk 0:01:26]} 17. Bxd4 {[%clk 0:01:52]}  Nb4 {[%clk 0:01:23]} 18. Qe2 {[%clk 0:01:36]}  Be7 {[%clk 0:01:12]} 19. a3 {[%clk 0:01:30]}  Nd5 {[%clk 0:01:12]} 20. Ne4 {[%clk 0:01:26]}  Ra4 {[%clk 0:01:09]} 21. c3 {[%clk 0:01:23]}  Nxc3 {[%clk 0:00:47]} 22. Nxc3 {[%clk 0:01:19]}  Rxd4 {[%clk 0:00:47]} 23. Nb5 {[%clk 0:01:18]}  Rd7 {[%clk 0:00:37]} 24. a4 {[%clk 0:01:06]}  O-O {[%clk 0:00:36]} 25. Qg4 {[%clk 0:00:59]}  Bc5 {[%clk 0:00:32]} 26. Kh1 {[%clk 0:00:54]}  Rfd8 {[%clk 0:00:30]} 27. f4 {[%clk 0:00:54]}  Qe4 {[%clk 0:00:30]} 28. Rae1 {[%clk 0:00:50]}  Qxa4 {[%clk 0:00:30]} 29. Nc3 {[%clk 0:00:48]}  Qc4 {[%clk 0:00:22]} 30. Ne4 {[%clk 0:00:48]}  Kh8 {[%clk 0:00:12]} 31. Qh5 {[%clk 0:00:31]}  h6 {[%clk 0:00:05]} 32. Ng5 {[%clk 0:00:19]}  Rd4 {[%clk 0:00:05]} 33. Nxf7+ {[%clk 0:00:17]}  Kg8 {[%clk 0:00:05]} 34. Nxd8 {[%clk 0:00:13]}  Rxd8 {[%clk 0:00:06]} 35. f5 {[%clk 0:00:13]}  exf5 {[%clk 0:00:03]} 36. e6 {[%clk 0:00:13]}  Qb4 {[%clk 0:00:01]} 37. Qf7+ {[%clk 0:00:12]}  Kh7 {[%clk 0:00:01]} 38. e7 {[%clk 0:00:12]}  Rd7 {[%clk 0:00:01]} 39. Qxf5+ {[%clk 0:00:12]}  g6 {[%clk 0:00:01]} 40. Qxd7 {[%clk 0:00:12]} 1-0


[Site "https://www.chess.com"]